bitfinex/quotes_ETHUSD_20250110
["timestamp","ask_amount","ask_price","bid_price","bid_amount"]
[1736541552415,0.7837,3270.3,3269.7,3.05834]
[1736541552610,0.7837,3270.3,3269.8,3.08885909]
[1736541553217,0.7837,3270.3,3269.8,3.05828]
[1736541553431,0.7837,3270.3,3269.6,3.46766745]
[1736541554025,0.7837,3270.3,3269.6,0.40921745]
[1736541554296,0.7642,3270.0,3269.1,3.0]
[1736541554497,3.10558684,3269.9,3269.0,4.72709943]
[1736541554726,3.10558684,3269.9,3269.4,0.757822]
[1736541556403,3.0583,3269.8,3269.4,0.757822]
[1736541556601,0.7964,3269.7,3269.4,0.757822]
[1736541558049,6.96495684,3269.5,3269.4,0.757822]
[1736541558633,9.96495684,3269.5,3269.4,0.757822]
[1736541558945,9.98745684,3269.5,3269.4,0.757822]
[1736541559532,10.54495684,3269.5,3269.4,2e-06]
[1736541560121,10.54495684,3269.5,3268.0,2.3769354]
[1736541560122,0.8006,3268.5,3268.0,2.3769354]
[1736541560323,3.10558684,3268.3,3268.0,2.3769354]
[1736541560523,3.86041,3268.2,3267.9,0.1195099]
[1736541560833,0.8006,3268.2,3267.9,0.1195099]
[1736541563405,0.8006,3268.2,3267.9,0.43748389]
[1736541563825,0.8006,3268.2,3267.9,0.1195099]
[1736541564152,0.752,3268.5,3267.9,0.1195099]
[1736541565608,0.752,3268.5,3267.9,3.1795499]
[1736541566515,3.10558684,3268.7,3267.9,0.1195099]
[1736541566715,0.7666,3268.8,3268.1,3.0598]
[1736541566916,0.7666,3268.8,3268.1,3.37773099]
[1736541567128,0.7666,3268.8,3268.1,0.31793099]
[1736541567370,0.7666,3268.8,3267.9,3.1795499]
[1736541567567,0.7666,3268.8,3267.9,3.4055499]
[1736541567867,0.7666,3268.8,3268.1,3.05987]
[1736541568169,3.10558684,3268.7,3267.9,3.4055299]
[1736541568870,3.0,3269.1,3267.9,3.4055299]
[1736541568871,0.7625,3268.2,3267.9,0.1195099]
[1736541569272,3.82237,3268.2,3267.9,0.1195099]
[1736541570491,0.7625,3268.2,3267.9,0.1195099]
[1736541573171,0.8048,3268.5,3267.9,0.8843099]
[1736541574736,0.8048,3268.5,3267.9,3.9443699]
[1736541574947,0.8048,3268.5,3267.9,4.34186687]
[1736541575148,2.56698307,3268.6,3267.9,4.34186687]
[1736541575380,2.56698307,3268.6,3267.9,1.28180687]
[1736541575543,2.56698307,3268.6,3267.9,0.8843099]
[1736541575747,2.56698307,3268.6,3267.9,3.9443599]
[1736541576295,2.56698307,3268.6,3267.9,0.8843099]
[1736541577791,2.56698307,3268.6,3268.0,3.05995]
[1736541578000,0.8048,3268.8,3268.1,0.0305979]
[1736541578159,2.56698307,3269.0,3268.1,0.0305979]
[1736541578364,2.56698307,3269.0,3268.0,3.05993]
[1736541578646,2.56698307,3268.7,3268.1,0.39442399]
[1736541579697,2.56698307,3268.7,3267.9,0.8843099]
[1736541579926,2.56698307,3268.7,3267.9,3.9443599]
[1736541580414,2.56698307,3268.1,3267.9,0.1195099]
[1736541580926,5.62664307,3268.4,3267.9,0.1195099]
[1736541581107,2.56698307,3268.4,3267.9,0.1195099]
[1736541581620,5.62659307,3268.4,3267.9,0.1195099]
[1736541581769,2.56698307,3268.4,3267.9,0.1195099]
[1736541582605,3.38058307,3268.0,3267.9,0.1195099]
[1736541582803,6.45555307,3268.0,3267.9,0.1195099]
[1736541583144,3.88857,3268.0,3267.9,0.1195099]
[1736541583703,6.89607,3268.0,3267.9,0.1195099]
[1736541585323,7.45357,3268.0,3267.9,9.9e-06]
[1736541586003,3.06091,3267.0,3266.9,0.22863706]
[1736541586299,3.06124,3266.7,3265.0,0.7689]
[1736541586517,2.56698307,3266.0,3265.2,3.06252]
[1736541586717,0.806,3265.9,3265.3,0.256252]
[1736541586897,3.86795,3265.9,3265.3,0.256252]
[1736541587103,3.86795,3265.9,3265.0,0.7689]
[1736541587332,0.806,3265.9,3265.0,3.83163]
[1736541587678,0.806,3265.9,3265.0,0.7689]
[1736541587878,0.806,3265.9,3265.1,3.06266]
[1736541588186,0.806,3266.2,3265.3,3.0625]
[1736541588435,0.806,3266.2,3265.4,0.30931223]
[1736541588662,2.56698307,3266.6,3265.7,3.06205]
[1736541588780,2.56698307,3266.6,3265.9,0.7689]
[1736541589188,0.806,3266.8,3265.9,0.7689]
[1736541589189,3.806,3266.8,3265.9,0.7689]
[1736541589492,0.806,3267.3,3266.5,3.06134]
[1736541589725,0.806,3267.3,3266.6,3.06127]
[1736541590945,3.11402598,3267.1,3266.4,0.7689]
[1736541591233,3.06092,3267.0,3266.1,0.7805]
[1736541591538,3.11402598,3267.1,3266.1,3.84224]
[1736541591700,6.17493598,3267.1,3266.1,3.84224]
[1736541592460,3.11402598,3267.1,3266.2,0.384224]
[1736541592619,0.806,3267.3,3266.3,0.03061299]
[1736541592934,0.806,3267.3,3266.5,3.06135]
[1736541593283,0.806,3267.3,3266.4,3.06145]
[1736541593799,3.0,3267.2,3266.2,0.226]
[1736541593970,3.0,3267.2,3266.3,0.406818]
[1736541594109,3.0,3267.2,3266.1,1.0065]
[1736541595504,0.806,3267.3,3266.4,3.06144]
[1736541597464,0.806,3267.3,3266.1,1.0065]
[1736541597672,3.86668,3267.3,3266.1,1.0065]
[1736541597817,3.86668,3267.3,3266.3,3.06156]
[1736541598019,3.86668,3267.3,3266.3,3.468366]
[1736541599316,0.806,3267.3,3266.5,3.06135]
[1736541599540,0.806,3267.3,3266.6,0.7807]
[1736541599940,0.806,3267.3,3266.6,3.84198]
[1736541600229,0.7769,3267.6,3266.9,3.06098]
[1736541600574,3.7769,3267.6,3266.7,3.06114]
[1736541600783,3.06059,3267.4,3266.6,0.7807]
[1736541600982,3.11402598,3267.5,3266.6,0.7807]
[1736541601324,3.11402598,3267.5,3266.3,4.03764]
[1736541601487,0.8211,3267.1,3266.3,4.441404]
[1736541602035,0.8211,3267.1,3266.3,1.379864]
[1736541602283,6.99597598,3267.1,3266.3,0.9761]
[1736541602687,3.93512598,3267.1,3266.3,4.03765]
[1736541602885,0.8211,3267.1,3266.4,0.03061115]
[1736541603086,0.7565,3267.4,3266.6,3.06127]
[1736541603287,6.45823781,3267.9,3266.9,3.83189]
[1736541603288,3.7565,3267.8,3266.9,3.83189]
[1736541603488,0.015,3268.1,3266.9,3.83189]
[1736541603489,0.7565,3268.1,3267.3,3.06062]
[1736541603632,0.7565,3268.1,3267.5,3.83132]
[1736541603836,3.11402598,3268.3,3267.5,3.83132]
[1736541604252,3.11402598,3268.3,3267.6,3.06034]
[1736541604488,3.11402598,3268.3,3267.5,0.7709]
[1736541604691,3.11402598,3268.3,3267.6,3.06033]
[1736541604989,3.11402598,3268.3,3267.5,0.7709]
[1736541605341,3.05989,3268.1,3267.2,0.226]
[1736541605540,3.11402598,3268.3,3267.2,0.226]
[1736541605741,3.11402598,3268.3,3267.6,3.06029]
[1736541606156,3.11402598,3268.3,3267.7,0.8083]
[1736541606941,6.17373598,3268.3,3267.4,3.06049]
[1736541607140,3.11402598,3268.3,3267.5,0.84770045]
[1736541607455,3.93162598,3268.7,3267.5,0.84770045]
[1736541607838,3.05942,3268.6,3267.5,0.8171]
[1736541608496,3.05942,3268.6,3267.7,3.06023]
[1736541609089,3.93162598,3268.7,3267.5,3.87746]
[1736541609291,2.56741211,3268.4,3267.5,3.87746]
[1736541609575,2.56741211,3268.4,3267.5,4.265206]
[1736541610017,5.62701211,3268.4,3267.5,1.204846]
[1736541610202,3.87675,3268.0,3267.2,0.7534]
[1736541610716,3.8167,3268.0,3267.2,0.7534]
[1736541611125,3.05988,3268.1,3267.2,0.7534]
[1736541611437,2.56741211,3267.8,3266.9,0.8323]
[1736541611617,0.8255,3267.4,3266.9,0.8323]
[1736541611777,0.8255,3267.4,3266.6,3.8935]
[1736541611985,0.8255,3267.4,3266.6,4.28285]
[1736541613551,2.56741211,3267.5,3266.6,1.22165]
[1736541613873,6.38944211,3268.1,3267.2,0.8237]
[1736541614052,6.38944211,3268.1,3267.2,3.88438]
[1736541614202,6.38944211,3268.1,3267.2,0.8237]
[1736541614203,3.0601,3267.9,3267.2,0.8237]
[1736541614403,6.38942211,3268.1,3267.2,0.8237]
[1736541614703,0.7621,3268.1,3267.3,0.03060375]
[1736541614916,0.7621,3268.1,3267.3,3.06054]
[1736541615953,0.7621,3268.1,3267.4,3.06044]
[1736541616687,0.7621,3268.1,3267.2,1.21521437]
[1736541616836,0.7621,3268.1,3267.5,3.06044]
[1736541618665,0.7711,3268.5,3267.8,0.7613]
[1736541618881,0.7711,3268.5,3267.9,0.03059748]
[1736541619029,0.7711,3268.5,3267.9,3.09062748]
[1736541619232,0.7711,3268.5,3267.9,0.03059748]
[1736541619447,0.7711,3268.5,3267.9,0.41580223]
[1736541619617,0.7711,3268.5,3267.9,3.47586223]
[1736541620561,0.7932,3268.9,3268.0,3.05995]
[1736541620762,0.7932,3268.9,3268.1,0.03059505]
[1736541621352,0.7932,3268.9,3268.0,3.05995]
[1736541621750,0.7932,3268.9,3268.1,0.03059505]
[1736541621960,0.7932,3268.9,3268.2,3.05973]
[1736541622950,0.7932,3268.9,3268.0,0.03059504]
[1736541622951,0.7932,3268.9,3268.0,3.09049504]
[1736541623130,0.7723,3268.6,3267.6,0.8178]
[1736541623452,3.05978,3268.2,3267.4,0.226]
[1736541623642,0.7723,3268.3,3267.4,3.06053]
[1736541623845,0.7723,3268.3,3267.5,3.06042]
[1736541624405,0.7723,3268.3,3267.3,0.8178]
[1736541624571,3.05991,3268.1,3267.3,0.8178]
[1736541625006,3.83201,3268.3,3267.3,3.87835]
[1736541625211,3.05985,3268.2,3267.3,0.8178]
[1736541625911,3.05985,3268.2,3267.3,0.84840257]
[1736541626110,3.05985,3268.2,3267.3,0.8178]
[1736541626305,3.05985,3268.2,3267.3,0.84840257]
[1736541626508,3.05985,3268.2,3267.3,0.8178]
[1736541626709,0.7723,3268.3,3267.3,0.8178]
[1736541626869,3.05988,3268.1,3267.3,0.8178]
[1736541627518,3.05988,3268.1,3267.0,3.0]
[1736541627519,3.34141211,3267.8,3266.9,3.83076]
[1736541627814,0.774,3267.8,3266.9,0.7698]
[1736541628116,0.774,3267.8,3267.1,3.06079]
[1736541628477,0.774,3267.8,3267.0,3.28969084]
[1736541628924,0.774,3267.8,3267.1,3.06081]
[1736541630103,0.774,3267.8,3267.3,3.06055]
[1736541630320,3.05983,3268.2,3267.3,3.06055]
[1736541630321,0.7816,3268.2,3267.3,3.06055]
[1736541630525,0.7816,3268.2,3267.4,0.03060265]
[1736541630734,0.7816,3268.2,3267.4,3.06051]
[1736541631031,3.05988,3268.1,3267.3,0.30911538]
[1736541631384,5.62729211,3268.1,3267.4,0.7776]
[1736541631588,5.62729211,3268.1,3267.3,0.30911538]
[1736541632293,0.04439632,3268.0,3267.3,0.30911538]
[1736541633016,0.04439632,3268.0,3267.3,0.33971806]
[1736541633209,0.04439632,3268.0,3267.3,0.30911538]
[1736541633607,0.04439632,3268.0,3267.3,3.06056]
[1736541634515,0.04439632,3268.0,3267.2,0.03060267]
[1736541634516,0.04439632,3268.0,3267.4,0.22918543]
[1736541635017,0.04439632,3268.0,3267.4,3.28970543]
[1736541635332,0.7816,3268.2,3267.4,3.28970543]
[1736541635834,0.0439951,3268.1,3267.5,0.22918543]
[1736541636918,0.0439951,3268.1,3267.3,3.06059]
[1736541637116,0.0439951,3268.1,3267.3,3.467009]
[1736541637519,0.0439951,3268.1,3267.5,3.06036]
[1736541637832,0.0439951,3268.1,3267.6,0.03060024]
[1736541638130,0.0439951,3268.1,3267.6,0.2291821]
[1736541638327,0.0439951,3268.1,3267.6,3.32012234]
[1736541638638,0.0439951,3268.1,3267.7,3.06017]
[1736541638833,0.0439951,3268.1,3267.8,3.06012]
[1736541639331,0.04369498,3268.0,3267.8,3.06012]
[1736541639634,0.04369498,3268.0,3267.7,0.8229]
[1736541639635,0.798,3268.4,3267.6,0.33201223]
[1736541639798,0.04370751,3267.9,3267.4,0.7877]
[1736541639998,0.798,3268.4,3267.4,0.7877]
[1736541640395,0.798,3268.4,3267.8,3.06012]
[1736541640396,0.04422773,3268.3,3267.8,3.06012]
[1736541640706,0.04422773,3268.3,3267.9,0.03059751]
[1736541640910,0.04422773,3268.3,3268.0,3.05996]
[1736541641113,0.04422773,3268.3,3268.1,0.305996]
[1736541641418,0.7855,3268.7,3268.1,3.05987]
[1736541641597,0.04428341,3268.2,3268.1,3.05987]
[1736541641933,0.7855,3268.7,3268.0,3.84766]
[1736541642091,0.04477788,3268.6,3268.0,3.84766]
[1736541642747,0.04477788,3268.6,3267.8,3.06014]
[1736541643167,0.04477788,3268.6,3268.0,3.05997]
[1736541643371,0.04477788,3268.6,3267.9,0.0305968]
[1736541643654,0.04477788,3268.6,3268.0,3.82327]
[1736541643839,0.04477788,3268.6,3268.0,4.04927]
[1736541644028,0.04477788,3268.6,3268.3,3.05967]
[1736541644230,0.7839,3269.0,3268.4,0.305967]
[1736541644553,0.04470413,3268.9,3268.4,0.305967]
[1736541645714,0.04470413,3268.9,3268.6,0.7886]
[1736541646012,0.763,3269.3,3268.7,0.03059001]
[1736541646214,0.04349074,3268.8,3268.3,3.84826]
[1736541646513,3.33041211,3269.3,3268.3,4.233086]
[1736541646667,0.04342197,3268.7,3268.3,4.233086]
[1736541646821,0.04342197,3268.7,3268.4,0.22897084]
[1736541647027,3.05886,3269.2,3268.4,0.22897084]
[1736541647228,0.04340077,3268.6,3268.4,0.22897084]
[1736541647565,0.04335371,3268.5,3268.4,0.63669392]
[1736541647770,3.33041211,3269.3,3268.4,0.22897084]
[1736541647925,0.0435804,3268.5,3268.4,3.28853084]
[1736541648258,0.0435804,3268.5,3268.4,3.31912239]
[1736541648460,3.33041211,3269.3,3268.4,3.28853084]
[1736541648840,0.04404018,3269.2,3268.4,3.28853084]
[1736541649062,0.04404018,3269.2,3268.4,3.75758335]
[1736541649464,0.04404018,3269.2,3268.4,3.52861251]
[1736541649757,0.04404018,3269.2,3268.4,0.46905251]
[1736541649966,0.7653,3269.1,3268.2,3.0597]
[1736541650160,0.7653,3269.1,3268.2,0.60022361]
[1736541650460,0.04399522,3269.0,3268.2,0.60022361]
[1736541650667,0.7653,3268.6,3267.8,3.06008]
[1736541650961,0.04344898,3268.5,3267.7,3.06025]
[1736541651148,3.10297898,3268.5,3267.6,3.82461]
[1736541651965,0.04344898,3268.5,3267.7,3.0]
[1736541652162,0.04344898,3268.5,3267.7,6.06024]
[1736541652669,0.04344898,3268.5,3267.8,0.22882739]
[1736541653230,0.04344898,3268.5,3267.8,0.93416413]
[1736541653567,0.04344898,3268.5,3267.8,4.02491229]
[1736541653964,0.04344898,3268.5,3267.8,3.99431413]
[1736541654667,0.04344898,3268.5,3267.8,3.76548674]
[1736541655564,0.8131,3268.4,3267.7,3.06024]
[1736541655770,0.85580404,3268.4,3267.7,3.06024]
[1736541656347,0.85580404,3268.4,3267.8,3.06012]
[1736541656548,0.85580404,3268.4,3267.6,0.7643]
[1736541656754,0.85580404,3268.4,3267.8,3.06011]
[1736541656957,0.85580404,3268.4,3267.8,3.44561082]
[1736541657968,0.85580404,3268.4,3267.8,0.38550082]
[1736541658145,0.85580404,3268.4,3267.6,3.0603]
[1736541658971,0.7683,3268.3,3267.5,0.60126514]
[1736541659278,3.82843,3267.9,3266.8,0.8078]
[1736541659485,3.82843,3267.9,3267.0,3.06083]
[1736541659654,0.04232643,3267.8,3267.1,3.98640432]
[1736541659971,0.04232643,3267.8,3267.1,3.366893]
[1736541660372,0.04232643,3267.8,3267.1,0.306083]
[1736541660578,0.04232643,3267.8,3266.9,3.06098]
[1736541660889,0.04232643,3267.8,3266.5,3.06135]
[1736541660890,3.87586,3267.7,3266.6,0.226]
[1736541661379,3.87586,3267.7,3267.0,0.22900105]
[1736541661882,0.7641,3267.5,3267.0,0.22900105]
[1736541662185,0.04162784,3267.4,3267.0,0.22900105]
[1736541662672,0.04162784,3267.4,3266.7,0.22900105]
[1736541663061,0.04162784,3267.4,3266.7,3.29011105]
[1736541663262,0.04162784,3267.4,3266.7,3.78206184]
[1736541664045,0.04162784,3267.4,3266.7,3.55306079]
[1736541665750,0.04162784,3267.4,3266.7,0.49195079]
[1736541666075,0.04162784,3267.4,3266.8,0.03060725]
[1736541666594,0.8011,3267.3,3266.7,0.22876269]
[1736541666946,0.04060736,3267.2,3266.7,3.28993269]
[1736541667488,0.04060736,3267.2,3266.8,3.79600716]
[1736541667686,0.04060736,3267.2,3267.1,3.06081]
[1736541667841,0.7799,3267.7,3267.2,3.06069]
[1736541668176,0.039198,3267.6,3267.3,3.06061]
[1736541668381,0.039198,3267.6,3267.1,0.306081]
[1736541668688,0.039198,3267.6,3266.8,0.7654]
[1736541668689,0.039198,3267.6,3267.0,3.06088]
[1736541669058,0.039198,3267.6,3267.0,3.06083]
[1736541669457,0.039198,3267.6,3267.1,3.06079]
[1736541669659,0.039198,3267.6,3267.2,0.03060232]
[1736541669981,2.56741211,3268.6,3267.8,3.06013]
[1736541669982,0.804,3268.2,3267.8,3.06013]
[1736541670186,5.62659211,3268.9,3267.9,0.33660981]
[1736541670386,0.804,3268.8,3267.9,0.33660981]
[1736541670688,3.05933,3268.7,3267.9,0.33660981]
[1736541670855,3.05933,3268.7,3267.9,0.306013]
[1736541671060,3.05962,3268.4,3267.5,0.759]
[1736541671259,0.804,3268.5,3267.6,0.03059974]
[1736541671459,3.86351,3268.5,3267.6,0.03059974]
[1736541672082,3.86351,3268.5,3267.5,4.44402774]
[1736541672389,3.86351,3268.5,3267.6,0.47500251]
[1736541672584,3.86351,3268.5,3267.6,0.44440277]
[1736541674366,0.03992526,3268.4,3267.6,0.44440277]
[1736541674682,3.83439,3268.2,3267.4,3.0]
[1736541675093,0.03993791,3268.1,3267.3,0.226]
[1736541675325,0.03993791,3268.1,3265.8,3.06199]
[1736541675326,3.06026,3267.7,3266.7,4.06056]
[1736541675463,0.7982,3267.6,3266.8,3.06104]
[1736541675802,0.83741233,3267.6,3266.8,3.467084]
[1736541676169,0.83741233,3267.6,3267.0,3.06088]
[1736541676365,0.83741233,3267.6,3267.1,0.03060489]
[1736541677510,0.83741233,3267.6,3266.9,3.06098]
[1736541678508,2.56741211,3267.4,3266.5,3.28735]
[1736541678709,2.56741211,3267.4,3266.5,3.06135]
[1736541678710,0.756,3267.3,3266.5,3.06135]
[1736541678884,0.79434014,3267.3,3266.4,1.61442506]
[1736541679089,0.79434014,3267.3,3266.4,3.28747]
[1736541679505,0.79434014,3267.3,3266.4,3.06147]
[1736541679685,0.756,3267.3,3266.5,3.06134]
[1736541680100,0.03809213,3267.2,3266.5,3.06134]
[1736541680301,0.03809213,3267.2,3266.4,3.390207]
[1736541681795,0.756,3267.3,3266.4,3.390207]
[1736541681979,0.03807252,3267.1,3266.4,3.390207]
[1736541682330,3.8319,3266.7,3265.5,0.7828]
[1736541682648,3.06076,3267.2,3265.5,0.7828]
[1736541682649,0.7707,3266.4,3265.6,0.226]
[1736541682917,3.06166,3266.3,3265.4,1.86749627]
[1736541683092,3.0989408,3266.3,3265.4,2.1542959]
[1736541683888,0.0372808,3266.3,3265.4,2.1542959]
[1736541684089,0.0372808,3266.3,3265.8,3.06203]
[1736541684730,0.0372808,3266.3,3265.9,0.03061606]
[1736541684930,0.0372808,3266.3,3265.8,3.06203]
[1736541685161,0.0372808,3266.3,3265.6,3.0622]
[1736541685321,0.7707,3266.4,3265.7,3.39892606]
[1736541685721,0.7707,3266.4,3265.7,3.36831]
[1736541686428,0.7707,3266.4,3265.8,3.09262606]
[1736541686764,0.03721525,3266.3,3265.8,0.03061606]
[1736541686941,0.03721525,3266.3,3266.2,3.06166]
[1736541687140,0.7611,3266.7,3266.2,3.448746]
[1736541687341,0.03704275,3266.6,3266.2,3.448746]
[1736541688066,0.03704275,3266.6,3266.3,0.03061222]
[1736541688265,0.03704275,3266.6,3266.3,3.09215222]
[1736541688567,0.03683293,3266.5,3266.4,3.06142]
[1736541688868,0.7948,3267.0,3266.4,0.34791182]
[1736541689726,0.03732339,3266.9,3266.4,0.34791182]
[1736541690225,0.03732339,3266.9,3266.2,3.448686]
[1736541690659,0.03732339,3266.9,3266.2,0.387086]
[1736541690959,0.03732339,3266.9,3266.3,3.06154]
[1736541691370,0.03732339,3266.9,3266.2,0.22860701]
[1736541691543,3.8524,3266.7,3266.2,0.22860701]
[1736541691748,0.03639035,3266.6,3266.2,0.22860701]
[1736541692988,0.03639035,3266.6,3266.2,3.09224567]
[1736541693482,0.8326,3266.5,3266.0,3.0618]
[1736541693783,0.8326,3266.0,3265.4,1.86749627]
[1736541693982,0.8326,3266.0,3265.2,3.0625]
[1736541694146,0.03684778,3265.9,3265.3,0.30625]
[1736541694571,0.03684778,3265.9,3265.4,0.03062038]
[1736541694971,0.7831,3266.3,3265.4,0.03062038]
[1736541695176,0.03694045,3266.2,3265.6,3.0622]
[1736541695494,0.03694045,3266.2,3265.7,0.03061738]
[1736541696688,0.03694045,3266.2,3265.5,3.0623]
[1736541696863,0.03694045,3266.2,3265.5,3.53321781]
[1736541697064,0.03694045,3266.2,3265.5,0.47091781]
[1736541698890,3.06176,3266.1,3265.3,0.7962]
[1736541699092,0.7557,3266.0,3265.2,0.226]
[1736541699326,3.06195,3265.9,3265.0,1.05]
[1736541699527,0.79238264,3266.0,3265.0,0.824]
[1736541699829,3.0625,3265.4,3264.6,0.1695099]
[1736541700224,0.03609594,3265.3,3264.6,0.1695099]
[1736541700627,0.03609594,3265.3,3264.7,0.03062716]
[1736541701131,3.06261,3265.2,3264.6,0.1695099]
[1736541701296,3.87347,3265.1,3264.6,0.1695099]
[1736541701624,0.0357971,3265.0,3264.6,0.1695099]
[1736541703613,3.0985871,3265.0,3264.6,0.1695099]
[1736541704739,0.0357971,3265.0,3264.6,0.1695099]
[1736541704939,3.0985871,3265.0,3264.6,0.1695099]
[1736541705639,0.0357971,3265.0,3264.6,0.1695099]
[1736541710110,0.0357971,3265.0,3264.6,3.2326199]
[1736541710304,0.0357971,3265.0,3264.6,0.58115844]
[1736541710551,0.03521835,3264.9,3264.6,0.58115844]
[1736541710867,0.7882,3265.4,3264.6,0.1695099]
[1736541711057,0.0351457,3264.8,3264.6,0.1695099]
[1736541711229,3.85069,3265.4,3264.6,0.1695099]
[1736541711426,0.03507304,3264.7,3264.6,0.1695099]
[1736541711755,3.85069,3265.4,3264.6,0.1695099]
[1736541711942,0.03555574,3265.3,3264.6,0.1695099]
[1736541712270,3.09806574,3265.3,3264.6,0.1695099]
[1736541712629,0.03555574,3265.3,3264.6,0.1695099]
[1736541713748,0.03555574,3265.3,3264.6,0.20013782]
[1736541714042,0.03555574,3265.3,3264.6,0.1695099]
[1736541714231,3.09807574,3265.3,3264.6,0.1695099]
[1736541714427,0.03555574,3265.3,3264.6,0.20013782]
[1736541714845,0.03555574,3265.3,3264.6,0.1695099]
[1736541717876,3.09806574,3265.3,3264.6,0.1695099]
[1736541718569,5.63002211,3265.2,3264.6,0.1695099]
[1736541718977,0.03425832,3265.1,3264.6,0.1695099]
[1736541720376,0.03425832,3265.1,3264.6,0.60874647]
[1736541720586,0.03425832,3265.1,3264.7,0.8047]
[1736541720886,3.87725,3265.7,3264.8,0.226]
[1736541721171,3.87725,3265.7,3264.8,3.28893]
[1736541721371,0.03444098,3265.6,3264.8,3.91575483]
[1736541721582,0.03444098,3265.6,3264.8,3.28893]
[1736541721733,0.03444098,3265.6,3264.6,0.1695099]
[1736541721734,3.06272,3265.1,3264.6,0.1695099]
[1736541722101,0.8044,3265.0,3264.6,0.1695099]
[1736541722234,0.83917635,3265.0,3264.6,0.1695099]
[1736541723680,3.90198635,3265.0,3264.6,0.1695099]
[1736541724236,3.06304,3264.8,3264.6,0.1695099]
[1736541724581,3.84886,3264.7,3264.6,0.1695099]
[1736541724735,7.45535784,3264.7,3264.6,9.9e-06]
[1736541724941,7.8750238,3264.7,3264.6,9.9e-06]
[1736541725175,7.8750238,3264.7,3264.4,0.09443661]
[1736541725176,3.86405,3264.5,3264.4,6.61e-06]
[1736541725366,10.01449002,3264.5,3264.4,6.61e-06]
[1736541725564,0.015,3263.9,3261.2,0.8016]
[1736541725737,0.7708,3262.3,3261.3,0.1695099]
[1736541726103,0.03215239,3262.2,3261.7,0.122769]
[1736541726271,0.03215239,3262.2,3261.4,1.01523003]
[1736541726576,2.56741211,3262.0,3261.5,0.22864209]
[1736541726782,0.030051,3261.9,3261.5,0.22864209]
[1736541727881,0.7671,3262.1,3261.3,3.2357399]
[1736541728184,0.7671,3262.1,3261.4,0.4303519]
[1736541728334,0.02983627,3262.0,3261.4,0.39969399]
[1736541728536,2.56741211,3261.9,3261.3,0.1695099]
[1736541728753,0.02963361,3261.8,3261.3,0.1695099]
[1736541728966,0.02963361,3261.8,3261.4,0.03066036]
[1736541729168,0.832,3262.9,3261.4,3.29215]
[1736541729435,0.02870052,3262.8,3261.8,3.06578]
[1736541729640,2.56741211,3262.7,3261.9,0.306578]
[1736541729835,0.02870052,3262.8,3262.2,3.0654]
[1736541730068,0.02858009,3262.6,3262.2,3.0654]
[1736541730298,0.02872825,3262.7,3262.0,3.84935]
[1736541730506,0.02883331,3262.5,3262.1,0.4155928]
[1736541730711,0.028555,3262.6,3262.1,0.4155928]
[1736541730911,0.02871762,3262.4,3262.1,0.4155928]
[1736541731189,0.02866994,3262.3,3262.1,0.4155928]
[1736541731413,0.832,3262.9,3262.1,0.4155928]
[1736541731721,0.02899193,3262.2,3262.1,0.4155928]
[1736541731857,0.832,3262.9,3262.1,0.4155928]
[1736541732056,0.832,3262.9,3262.1,3.0655]
[1736541732257,0.0297583,3262.8,3262.0,0.7838]
[1736541732473,0.0297583,3262.8,3262.3,3.06528]
[1736541732815,0.02857252,3262.7,3262.3,3.06528]
[1736541733114,0.792,3263.3,3262.3,3.06528]
[1736541733273,2.56741211,3264.1,3262.4,0.33717772]
[1736541733600,0.60896166,3264.2,3263.1,3.06457]
[1736541733601,0.792,3263.9,3263.1,3.06457]
[1736541733754,0.02934102,3263.8,3263.1,3.06457]
[1736541733957,0.792,3263.9,3263.1,3.06457]
[1736541734157,0.02736127,3263.8,3262.8,3.06477]
[1736541734400,0.02736127,3263.8,3262.9,0.329077]
[1736541734695,3.09129127,3263.8,3262.8,3.06477]
[1736541735399,0.02736127,3263.8,3262.8,3.06483]
[1736541735586,0.02736127,3263.8,3262.9,0.03064444]
[1736541735899,0.02736127,3263.8,3263.3,3.06436]
[1736541736068,0.02736127,3263.8,3263.4,0.33707563]
[1736541736273,0.792,3263.9,3263.4,0.33707564]
[1736541736474,0.02738033,3263.7,3263.4,0.33707564]
[1736541736836,0.792,3263.9,3263.4,0.33707564]
[1736541736998,0.792,3263.9,3263.4,0.03063964]
[1736541737300,0.02740295,3263.8,3263.4,0.03063964]
[1736541737673,0.02740295,3263.8,3263.5,3.06411]
[1736541737868,0.7933,3264.3,3263.4,3.06427]
[1736541738086,0.02720846,3263.7,3263.5,3.06418]
[1736541738399,0.02720846,3263.7,3263.2,0.8279]
[1736541738400,3.85676,3264.3,3263.3,3.06438]
[1736541738695,0.02688084,3264.2,3263.3,3.476208]
[1736541739276,0.02688084,3264.2,3263.5,3.06414]
[1736541739585,0.02688084,3264.2,3263.5,3.06411]
[1736541740399,0.02688084,3264.2,3263.3,0.411828]
[1736541740400,0.02688084,3264.2,3263.4,0.0075]
[1736541740607,0.7933,3264.3,3263.5,0.3483658]
[1736541740809,0.02758644,3264.2,3263.6,3.06401]
[1736541741014,0.02758644,3264.2,3263.5,0.3483658]
[1736541741199,2.56741211,3265.1,3263.5,0.3483658]
[1736541741200,0.8328,3264.7,3263.8,0.7715]
[1736541741365,0.02791871,3264.6,3264.2,3.06352]
[1736541741568,0.8328,3264.7,3264.0,3.06368]
[1736541741795,0.8328,3264.7,3263.8,3.83538]
[1736541741983,0.8328,3264.7,3263.6,3.9007442]
[1736541741984,0.0268536,3264.6,3263.6,3.9007442]
[1736541742171,0.0268536,3264.6,3263.7,0.03063552]
[1736541742591,0.0268536,3264.6,3263.9,3.0638]
[1736541742969,0.0268536,3264.6,3264.0,3.09434345]
[1736541743176,0.0268536,3264.6,3264.3,3.06342]
[1736541743369,0.8028,3265.0,3264.4,0.03063066]
[1736541743574,0.02730883,3264.9,3264.5,3.06318]
[1736541743774,0.8028,3265.3,3264.6,0.03062838]
[1736541743988,0.02785723,3265.2,3264.6,0.03062838]
[1736541744969,0.02785723,3265.2,3264.3,3.84742]
[1736541745374,3.06269,3265.1,3263.9,0.7902]
[1736541745597,3.06269,3265.1,3264.1,3.06361]
[1736541745817,0.02770075,3265.0,3264.2,3.06351]
[1736541746115,3.86532,3265.3,3264.2,3.06351]